bitfinex-derivatives/quotes_SOLF0:USTF0_20250110
["timestamp","ask_amount","ask_price","bid_price","bid_amount"]
[1736478128161,12.41847721,188.22,188.11,1.5004]
[1736478128362,17.09847721,188.22,188.11,1.5004]
[1736478129160,17.09847721,188.22,188.16,2.6575]
[1736478129465,17.09847721,188.22,188.11,1.5004]
[1736478129661,17.09847721,188.22,188.16,2.6575]
[1736478129861,17.09847721,188.22,188.11,1.5004]
[1736478130063,9.76157721,188.22,188.11,1.5004]
[1736478130263,9.76157721,188.25,188.2,2.6571]
[1736478130457,14.44157721,188.25,188.13,9.76157721]
[1736478130662,9.76157721,188.25,188.13,9.76157721]
[1736478131077,4.68,188.26,188.16,9.76157721]
[1736478131565,4.68,188.26,188.19,2.6572]
[1736478131766,9.76157721,188.25,188.13,9.76157721]
[1736478132265,2.6566,188.24,188.17,2.6574]
[1736478132760,9.76157721,188.25,188.13,9.76157721]
[1736478133460,4.68,188.24,188.19,2.6572]
[1736478133659,4.68,188.24,188.13,9.76157721]
[1736478134061,9.76157721,188.22,188.11,1.5004]
[1736478134261,4.68,188.24,188.11,1.5004]
[1736478134262,12.41887721,188.19,188.11,1.5004]
[1736478134566,9.76157721,188.19,188.11,1.5004]
[1736478135166,9.76157721,188.19,188.13,2.658]
[1736478135365,9.76157721,188.19,188.11,1.5004]
[1736478136067,9.76157721,188.19,188.14,2.6578]
[1736478139166,9.76157721,188.19,188.14,2.6579]
[1736478139371,9.76157721,188.19,188.08,3.0724]
[1736478139570,9.76157721,188.16,188.08,3.0724]
[1736478141266,9.76157721,188.16,188.12,2.6582]
[1736478141962,9.76157721,188.16,188.08,1.4999]
[1736478142161,9.76157721,188.16,188.04,11.33167721]
[1736478142361,12.41927721,188.16,188.04,11.33167721]
[1736478142565,9.76157721,188.16,188.04,11.33167721]
[1736478144069,2.658,188.14,188.09,2.6586]
[1736478144470,9.76157721,188.16,188.09,2.6586]
[1736478145269,2.6578,188.15,188.09,2.6586]
[1736478146072,2.6578,188.15,188.1,2.6585]
[1736478147770,2.6578,188.15,188.04,11.33167721]
[1736478147971,9.76157721,188.16,188.04,11.33167721]
[1736478148176,4.68,188.17,188.04,11.33167721]
[1736478148376,1.6484,188.18,188.04,11.33167721]
[1736478148673,15.95517721,188.19,188.07,9.76157721]
[1736478148876,11.27517721,188.19,188.18,2.6574]
[1736478149274,1.5136,188.19,188.18,2.6574]
[1736478149877,4.68,188.2,188.18,2.6574]
[1736478150578,4.68,188.2,188.17,2.6575]
[1736478152675,9.76157721,188.19,188.13,2.658]
[1736478152881,9.76157721,188.16,188.04,40.53713186]
[1736478153178,9.76157721,188.19,188.16,2.6576]
[1736478153382,9.76157721,188.19,188.07,9.76157721]
[1736478153879,9.76157721,188.19,188.1,2.6584]
[1736478154079,9.76157721,188.19,188.07,9.76157721]
[1736478154482,4.68,188.21,188.17,2.6574]
[1736478154681,4.68,188.21,188.1,9.76157721]
[1736478154879,9.76157721,188.22,188.11,4.8709]
[1736478155080,4.68,188.23,188.13,9.76157721]
[1736478155780,4.68,188.23,188.2,2.6571]
[1736478156978,14.05217721,188.25,188.2,2.6571]
[1736478157180,11.39577721,188.25,188.13,9.76157721]
[1736478157880,11.39577721,188.25,188.11,4.8709]
[1736478158079,2.6568,188.22,188.11,4.8709]
[1736478158280,9.76157721,188.22,188.11,4.8709]
[1736478159184,9.76157721,188.22,188.15,2.6577]
[1736478159786,12.41837721,188.22,188.17,2.6575]
[1736478160483,9.76157721,188.22,188.17,2.6575]
[1736478161577,12.41837721,188.22,188.17,2.6575]
[1736478163586,2.657,188.21,188.11,4.8709]
[1736478165087,2.657,188.21,188.14,2.6579]
[1736478165387,2.657,188.21,188.11,4.8709]
[1736478166190,2.657,188.21,188.16,2.6576]
[1736478166991,9.76157721,188.23,188.11,4.8709]
[1736478167187,12.41837721,188.23,188.19,2.6572]
[1736478168294,12.41837721,188.23,188.11,4.8709]
[1736478168495,1.6342,188.25,188.13,9.76157721]
[1736478168697,4.68,188.25,188.13,9.76157721]
[1736478169090,7.3365,188.25,188.13,9.76157721]
[1736478169301,4.68,188.25,188.13,9.76157721]
[1736478169500,4.68,188.25,188.11,4.8709]
[1736478169791,2.6566,188.24,188.2,2.6571]
[1736478171489,4.68,188.25,188.2,2.6571]
[1736478171700,7.3364,188.25,188.2,2.6571]
[1736478172392,7.3364,188.25,188.11,4.8709]
[1736478172596,7.3364,188.25,188.21,2.6569]
[1736478175205,1.59,188.31,188.16,9.76157721]
[1736478175394,4.68,188.27,188.16,9.76157721]
[1736478175599,14.02027721,188.29,188.19,2.6571]
[1736478175798,17.09747721,188.29,188.16,9.76157721]
[1736478176795,17.09747721,188.29,188.19,9.76157721]
[1736478176796,9.76157721,188.29,188.19,9.76157721]
[1736478177097,6.27,188.31,188.2,4.6597]
[1736478177402,14.44157721,188.32,188.2,4.6597]
[1736478177998,17.09707721,188.32,188.26,2.6561]
[1736478179002,12.41707721,188.32,188.27,2.6561]
[1736478182003,4.68,188.33,188.22,9.76157721]
[1736478182306,9.76157721,188.38,188.28,9.76157721]
[1736478183301,11.36597721,188.41,188.28,9.76157721]
[1736478183500,4.68,188.4,188.29,4.5682]
[1736478184011,1.4917,188.43,188.29,4.5682]
[1736478184012,1.4917,188.43,188.31,9.76157721]
[1736478184199,9.76157721,188.44,188.39,2.6543]
[1736478184597,4.68,188.48,188.34,9.76157721]
[1736478184798,14.44157721,188.48,188.34,9.76157721]
[1736478184996,2.6533,188.47,188.38,2.6545]
[1736478185195,2.6533,188.47,188.34,9.76157721]
[1736478186106,2.6533,188.47,188.4,2.6542]
[1736478186306,14.44157721,188.48,188.37,9.76157721]
[1736478186507,14.44157721,188.48,188.38,1.613]
[1736478186715,14.44157721,188.48,188.42,2.6539]
[1736478187005,14.44157721,188.48,188.34,9.76157721]
[1736478187199,14.44157721,188.48,188.37,2.6546]
[1736478187406,2.6536,188.46,188.34,9.76157721]
[1736478187704,14.44157721,188.48,188.34,9.76157721]
[1736478187905,2.6539,188.43,188.34,9.76157721]
[1736478188106,2.6539,188.43,188.31,9.76157721]
[1736478188409,9.76157721,188.45,188.31,9.76157721]
[1736478188608,9.76157721,188.45,188.34,9.76157721]
[1736478189310,9.76157721,188.45,188.39,2.6543]
[1736478189901,2.6535,188.46,188.4,2.6543]
[1736478190106,17.09487721,188.48,188.34,9.76157721]
[1736478190701,4.68,188.49,188.37,9.76157721]
[1736478190905,4.68,188.49,188.38,4.7293]
[1736478191103,1.5842,188.5,188.38,4.7293]
[1736478191308,1.5842,188.5,188.41,2.6541]
[1736478191611,1.5842,188.5,188.38,4.7293]
[1736478192113,4.2371,188.5,188.44,2.6537]
[1736478192610,1.5842,188.5,188.38,4.7293]
[1736478192812,2.6533,188.47,188.41,2.6541]
[1736478194014,9.76157721,188.48,188.38,1.6027]
[1736478194218,2.6536,188.45,188.39,2.6543]
[1736478194605,2.6536,188.45,188.4,2.6542]
[1736478195514,2.6539,188.43,188.34,9.76157721]
[1736478197110,4.68,188.44,188.34,9.76157721]
[1736478197514,4.68,188.44,188.37,9.76157721]
[1736478197917,4.68,188.44,188.42,2.6539]
[1736478198118,4.68,188.44,188.37,9.76157721]
[1736478198612,12.41487721,188.48,188.37,9.76157721]
[1736478198813,12.41487721,188.48,188.38,3.1478]
[1736478199317,12.41487721,188.48,188.42,2.654]
[1736478200514,9.76157721,188.48,188.44,2.6537]
[1736478201212,9.76157721,188.48,188.38,3.1478]
[1736478201413,2.6534,188.47,188.41,2.6541]
[1736478201611,9.76157721,188.48,188.38,3.1478]
[1736478202115,2.653,188.49,188.43,2.6538]
[1736478202325,4.68,188.63,188.43,9.76157721]
[1736478202522,9.76157721,188.57,188.43,9.76157721]
[1736478202823,2.6522,188.55,188.43,9.76157721]
[1736478203224,9.76157721,188.54,188.43,9.76157721]
[1736478203421,9.76157721,188.51,188.46,2.6533]
[1736478203620,9.76157721,188.51,188.4,9.76157721]
[1736478203823,9.76157721,188.51,188.38,9.4128]
[1736478204026,2.653,188.49,188.43,2.6538]
[1736478205230,2.6532,188.48,188.38,9.4128]
[1736478205421,2.6532,188.48,188.42,2.654]
[1736478205925,2.6532,188.48,188.43,2.6538]
[1736478206324,14.42157721,188.48,188.37,9.76157721]
[1736478206524,14.42157721,188.48,188.34,9.76157721]
[1736478207225,2.6536,188.46,188.38,2.6545]
[1736478207425,2.6536,188.46,188.34,9.76157721]
[1736478210024,2.6536,188.46,188.4,2.6542]
[1736478210225,17.07477721,188.48,188.37,9.76157721]
[1736478210423,17.07477721,188.48,188.43,2.6539]
[1736478210628,17.07477721,188.48,188.37,9.76157721]
[1736478211128,17.07477721,188.48,188.42,2.654]
[1736478211726,12.41477721,188.48,188.42,2.654]
[1736478212126,12.41477721,188.48,188.43,2.6538]
[1736478212932,12.41477721,188.48,188.44,2.6537]
[1736478214632,7.3129,188.5,188.45,2.6535]
[1736478216423,7.3129,188.5,188.46,2.6534]
[1736478216629,2.6529,188.5,188.46,2.6534]
[1736478217329,6.22945484,188.5,188.48,2.653]
[1736478217831,6.22945484,188.5,188.43,6.22945484]
[1736478218032,8.88245484,188.5,188.45,2.6536]
[1736478218228,8.88245484,188.5,188.43,6.22945484]
[1736478219131,8.88245484,188.5,188.46,2.6534]
[1736478222227,6.22945484,188.48,188.44,2.6537]
[1736478223234,6.22945484,188.48,188.45,2.6536]
[1736478224128,6.22945484,188.48,188.44,2.6537]
[1736478225633,6.22945484,188.48,188.39,1.6019]
[1736478225832,6.22945484,188.46,188.42,2.6539]
[1736478228037,6.22945484,188.46,188.43,2.6539]
[1736478229140,6.22945484,188.48,188.45,2.6535]
[1736478229736,8.88245484,188.5,188.45,2.6535]
[1736478230140,6.22945484,188.5,188.47,2.6533]
[1736478230335,6.22945484,188.5,188.42,6.22945484]
[1736478231635,6.22945484,188.5,188.46,2.6534]
[1736478233442,8.88235484,188.5,188.46,2.6534]
[1736478235845,8.88235484,188.5,188.42,6.22945484]
[1736478236039,6.22945484,188.46,188.38,3.1087]
[1736478236245,6.22945484,188.46,188.38,9.33815484]
[1736478237738,6.22945484,188.44,188.38,7.76655484]
[1736478238437,6.22945484,188.44,188.4,2.6542]
[1736478239252,8.88315484,188.44,188.39,2.6544]
[1736478240245,6.22945484,188.44,188.4,2.6543]
[1736478241742,6.22945484,188.46,188.42,2.654]
[1736478241941,6.22945484,188.46,188.4,6.22945484]
[1736478242146,4.66,188.48,188.42,6.22945484]
[1736478242344,4.66,188.48,188.47,2.6533]
[1736478242541,6.22945484,188.49,188.47,2.6533]
[1736478243543,6.22945484,188.51,188.44,6.22945484]
[1736478243745,6.22945484,188.51,188.48,2.6531]
[1736478246548,80.99283004,188.61,188.46,6.22945484]
[1736478246750,6.22945484,188.54,188.51,2.6527]
[1736478247636,6.22945484,188.54,188.48,6.22945484]
[1736478248047,6.22945484,188.54,188.52,2.6525]
[1736478250241,6.22945484,188.54,188.48,6.22945484]
[1736478250242,6.22945484,188.56,188.48,6.22945484]
[1736478250441,6.22945484,188.56,188.5,6.22945484]
[1736478251849,6.22945484,188.58,188.54,2.6522]
[1736478252250,6.22945484,188.58,188.52,6.22945484]
[1736478253149,6.22945484,188.58,188.55,2.652]
[1736478254044,8.88125484,188.58,188.53,2.6523]
[1736478254255,6.22945484,188.56,188.5,6.22945484]
[1736478254451,6.22945484,188.54,188.48,6.22945484]
[1736478254842,6.22945484,188.56,188.51,2.6527]
[1736478256343,6.22945484,188.56,188.52,2.6525]
[1736478256546,6.22945484,188.56,188.51,6.22945484]
[1736478257452,6.22945484,188.56,188.47,2.6532]
[1736478257756,6.22945484,188.56,188.5,6.22945484]
[1736478258055,85.9151,188.63,188.56,2.652]
[1736478258251,85.9151,188.63,188.48,1.6099]
[1736478258252,3.1151,188.63,188.54,6.22945484]
[1736478258459,6.22945484,188.64,188.58,6.22945484]
[1736478259455,4.66,188.68,188.62,6.22945484]
[1736478260154,7.3104,188.68,188.63,2.651]
[1736478261648,4.66,188.68,188.64,2.6508]
[1736478262158,6.22945484,188.71,188.64,6.22945484]
[1736478262356,6.22945484,188.73,188.66,6.22945484]
[1736478263149,6.22945484,188.69,188.62,6.22945484]
[1736478263347,9.71451772,188.72,188.59,11.23401772]
[1736478263956,9.71451772,188.72,188.62,9.71451772]
[1736478264660,2.6499,188.71,188.65,2.6508]
[1736478264854,9.71451772,188.72,188.62,9.71451772]
[1736478265359,12.36441772,188.72,188.65,2.6508]
[1736478265558,12.36441772,188.72,188.62,9.71451772]
[1736478265854,4.66,188.74,188.62,9.71451772]
[1736478266658,9.71451772,188.72,188.62,9.71451772]
[1736478269060,12.36441772,188.72,188.62,9.71451772]
[1736478270260,12.36441772,188.72,188.66,2.6506]
[1736478270560,9.71451772,188.72,188.66,2.6506]
[1736478270763,2.6499,188.71,188.62,9.71451772]
[1736478271361,2.6499,188.71,188.65,2.6506]
[1736478271961,2.6502,188.7,188.59,11.23401772]
[1736478272761,9.71451772,188.72,188.59,11.23401772]
[1736478272963,12.36431772,188.72,188.59,11.23401772]
[1736478273467,12.36431772,188.72,188.66,2.6506]
[1736478273668,12.36431772,188.72,188.59,11.23401772]
[1736478274271,9.71451772,188.72,188.62,9.71451772]
[1736478274470,4.66,188.73,188.62,9.71451772]
[1736478274773,7.3097,188.73,188.65,2.6507]
[1736478274965,7.3097,188.73,188.62,9.71451772]
[1736478275370,14.37451772,188.75,188.7,2.6501]
[1736478275967,17.02391772,188.75,188.7,2.6501]
[1736478276170,14.37451772,188.75,188.7,2.6501]
[1736478277075,2.6495,188.74,188.7,2.6501]
[1736478277469,14.37451772,188.75,188.7,2.6501]
[1736478277775,12.36391772,188.75,188.7,2.6501]
[1736478278382,7.3092,188.77,188.72,2.6497]
[1736478278674,2.6492,188.77,188.72,2.6497]
[1736478278874,2.6489,188.79,188.74,2.6494]
[1736478279374,5.7424,188.81,188.76,2.6492]
[1736478279580,10.4024,188.81,188.76,2.6492]
[1736478280179,7.7538,188.81,188.76,2.6492]
[1736478280380,2.6487,188.8,188.75,2.6493]
[1736478280578,9.71451772,188.79,188.68,9.71451772]
[1736478281479,9.71451772,188.76,188.66,4.7158]
[1736478281987,2.6495,188.74,188.69,2.6502]
[1736478282377,4.66,188.75,188.66,4.7158]
[1736478282779,7.3094,188.75,188.66,4.7158]
[1736478282977,4.66,188.75,188.66,4.7158]
[1736478283379,6.21423261,188.74,188.7,2.6499]
[1736478284280,7.3094,188.75,188.7,2.6499]
[1736478284482,13.52363261,188.75,188.7,2.6499]
[1736478284982,13.52363261,188.75,188.66,4.7158]
[1736478284983,6.21423261,188.73,188.66,4.7158]
[1736478285188,6.21423261,188.73,188.69,2.6502]
[1736478285684,8.86393261,188.73,188.68,2.6503]
[1736478285987,6.21423261,188.71,188.68,2.6503]
[1736478286282,8.86433261,188.71,188.66,2.6505]
[1736478287381,6.21423261,188.67,188.64,2.6509]
[1736478288781,6.21423261,188.67,188.62,8.86533261]
[1736478289083,6.21423261,188.65,188.58,6.21423261]
[1736478289286,10.87423261,188.65,188.58,6.21423261]
[1736478290679,10.87423261,188.65,188.6,2.6514]
[1736478290886,2.651,188.64,188.58,6.21423261]
[1736478291083,10.87423261,188.65,188.58,6.21423261]
[1736478292189,13.52503261,188.65,188.6,2.6515]
[1736478292385,10.87423261,188.65,188.58,6.21423261]
[1736478293689,13.52503261,188.65,188.59,2.6516]
[1736478293988,10.87423261,188.65,188.58,6.21423261]
[1736478294490,2.651,188.64,188.58,8.86593261]
[1736478294688,6.21423261,188.63,188.58,2.6517]
[1736478295890,2.6512,188.62,188.57,2.6519]
[1736478296190,6.21423261,188.61,188.57,2.6519]
[1736478296888,8.86593261,188.59,188.54,2.6523]
[1736478297086,6.21423261,188.57,188.51,6.21423261]
[1736478297390,10.87423261,188.57,188.51,6.21423261]
[1736478297589,10.87423261,188.57,188.53,2.6524]
[1736478299392,7.3119,188.57,188.47,9.72729766]
[1736478300090,7.3119,188.57,188.5,2.6529]
[1736478300290,7.3119,188.57,188.47,9.72729766]
[1736478300491,4.66,188.57,188.5,9.72729766]
[1736478300691,11.21769766,188.64,188.57,2.6518]
[1736478300692,4.66,188.62,188.57,2.6518]
[1736478300993,7.3112,188.62,188.53,9.72729766]
[1736478301291,7.3112,188.62,188.56,2.6519]
[1736478301493,7.3112,188.62,188.53,9.72729766]
[1736478301494,4.66,188.62,188.53,9.72729766]
[1736478301892,4.66,188.62,188.58,2.6517]
[1736478302495,7.3112,188.62,188.53,9.72729766]
[1736478303194,7.3112,188.62,188.56,2.6519]
[1736478303393,7.3112,188.62,188.53,9.72729766]
[1736478303595,7.3112,188.62,188.47,9.72729766]
[1736478303596,3.0618,188.66,188.56,9.72729766]
[1736478303792,14.38729766,188.7,188.59,9.72729766]
[1736478303987,4.7534,188.72,188.62,9.72729766]
[1736478304194,7.8504,188.72,188.62,9.72729766]
[1736478304698,7.8504,188.72,188.59,9.72729766]
[1736478305099,9.72729766,188.7,188.59,9.72729766]
[1736478305693,2.6503,188.69,188.59,9.72729766]
[1736478306190,2.6503,188.69,188.56,4.5732]
[1736478306191,9.72729766,188.7,188.56,14.30049766]
[1736478306392,9.72729766,188.67,188.56,14.30049766]
[1736478307195,9.72729766,188.67,188.56,4.5732]
[1736478307398,12.37789766,188.67,188.59,2.6515]
[1736478307596,12.37789766,188.67,188.56,4.5732]
[1736478308107,4.66,188.66,188.56,4.5732]
[1736478308299,4.66,188.66,188.56,14.30049766]
[1736478308499,4.66,188.66,188.61,2.6512]
[1736478308694,4.66,188.66,188.56,14.30049766]
[1736478309201,4.66,188.66,188.59,2.6516]
[1736478309389,4.66,188.66,188.56,3.055]
[1736478309592,4.66,188.66,188.56,1.5437]
[1736478310095,2.651,188.64,188.56,1.5437]
[1736478310494,4.66,188.66,188.56,1.5437]
[1736478310695,2.6508,188.65,188.59,2.6515]
[1736478312998,2.6509,188.64,188.59,2.6515]
[1736478314601,2.6513,188.61,188.57,2.6519]
[1736478314899,9.72729766,188.61,188.5,3.2109]
[1736478315101,9.72729766,188.55,188.48,1.5586]
[1736478315303,12.37949766,188.55,188.5,2.6529]
[1736478316103,9.72729766,188.55,188.52,2.6526]
[1736478316602,9.72729766,188.55,188.44,3.2366]
[1736478316804,9.72729766,188.55,188.51,2.6527]
[1736478317200,9.72729766,188.55,188.44,3.2366]
[1736478317201,4.66,188.57,188.45,9.72729766]
[1736478317906,7.3119,188.57,188.45,9.72729766]
[1736478318595,4.66,188.57,188.48,2.6531]
[1736478318895,12.37949766,188.55,188.45,9.72729766]
[1736478319100,9.72729766,188.55,188.44,3.2366]
[1736478319902,2.6523,188.54,188.48,2.653]
[1736478321404,9.72729766,188.55,188.44,1.5988]
[1736478321607,9.72729766,188.52,188.43,3.1908]
[1736478323106,2.6529,188.5,188.45,2.6536]
[1736478323304,4.66,188.5,188.45,2.6536]
[1736478323506,4.66,188.5,188.43,3.1908]
[1736478324201,4.66,188.5,188.43,1.5586]
[1736478324409,2.653,188.49,188.43,4.2123]
[1736478325115,2.653,188.49,188.44,2.6537]
[1736478325800,9.72729766,188.49,188.38,1.5082]
[1736478326411,2.6532,188.48,188.42,2.6539]
[1736478326606,9.72729766,188.49,188.38,1.5082]
[1736478326909,4.66,188.5,188.47,2.6532]
[1736478327111,4.66,188.5,188.39,9.72729766]
[1736478327709,4.66,188.5,188.46,2.6534]
[1736478329611,4.66,188.5,188.44,2.6536]
[1736478330212,2.653,188.49,188.44,2.6536]
[1736478330407,2.653,188.49,188.39,9.72729766]
[1736478330607,4.66,188.5,188.45,2.6535]
[1736478330914,4.66,188.5,188.39,9.72729766]
[1736478331711,4.66,188.5,188.46,2.6533]
[1736478332609,7.3129,188.5,188.46,2.6533]
[1736478332814,4.66,188.5,188.44,2.6536]
[1736478333214,4.66,188.5,188.39,9.72729766]
[1736478333810,4.66,188.5,188.46,2.6533]
[1736478334213,7.3127,188.51,188.46,2.6533]
[1736478334612,2.653,188.49,188.44,2.6536]
[1736478335119,2.6536,188.45,188.38,1.5082]
[1736478335810,2.6536,188.45,188.4,2.6543]
[1736478336009,2.6536,188.45,188.38,1.5082]
[1736478336615,2.6536,188.45,188.4,2.6543]
[1736478336810,9.72729766,188.49,188.38,1.5082]
[1736478337006,2.6535,188.46,188.38,1.5082]
[1736478337211,9.72729766,188.49,188.41,2.654]
[1736478337418,12.38039766,188.49,188.38,1.5082]
[1736478337614,14.38729766,188.49,188.38,1.5082]
[1736478337917,2.6533,188.48,188.43,2.6538]
[1736478338120,2.6533,188.48,188.38,1.5082]
[1736478338121,9.72729766,188.46,188.38,1.5082]
[1736478338417,9.72729766,188.46,188.39,2.6544]
[1736478339217,9.72729766,188.46,188.4,2.6543]
[1736478339613,3.1116,188.48,188.38,1.5082]
[1736478339817,2.6534,188.47,188.41,2.6541]
[1736478340119,3.1116,188.48,188.38,1.5082]
[1736478340613,2.6533,188.47,188.41,2.6541]
[1736478342219,5.7648,188.48,188.38,1.5082]
[1736478342420,1.6326,188.56,188.39,9.72729766]
[1736478342618,9.72729766,188.54,188.42,9.72729766]
[1736478343120,9.72729766,188.54,188.49,2.6529]
[1736478343316,14.38729766,188.54,188.49,2.6529]
[1736478343819,17.03959766,188.54,188.49,2.6529]
[1736478344018,12.37959766,188.54,188.49,2.6529]
[1736478344212,9.72729766,188.54,188.5,2.6527]
[1736478344412,14.38729766,188.57,188.45,9.72729766]
[1736478344619,14.38729766,188.57,188.46,3.1681]
[1736478345911,2.652,188.56,188.49,2.653]
[1736478346118,2.652,188.56,188.46,3.1681]
[1736478346719,2.6523,188.55,188.49,2.653]
[1736478346923,4.66,188.55,188.46,3.1681]
[1736478347422,4.66,188.55,188.51,2.6527]
[1736478349225,4.66,188.55,188.52,2.6525]
[1736478349421,10.88583158,188.55,188.48,6.22583158]
[1736478349622,10.88583158,188.55,188.5,6.22583158]
[1736478349623,4.66,188.55,188.5,6.22583158]
[1736478350330,10.88583158,188.55,188.48,6.22583158]
[1736478350724,6.22583158,188.55,188.48,6.22583158]
[1736478352228,6.22583158,188.55,188.51,2.6526]
[1736478352832,6.22583158,188.55,188.52,2.6526]
[1736478353331,6.22583158,188.55,188.5,2.6529]
[1736478353633,6.22583158,188.53,188.5,2.6529]
[1736478355235,6.22583158,188.53,188.46,9.39393158]
[1736478355436,6.22583158,188.53,188.49,2.653]
[1736478355738,6.22583158,188.51,188.44,6.22583158]
[1736478355933,6.22583158,188.51,188.46,2.6534]
[1736478356137,6.22583158,188.49,188.46,2.6534]
[1736478357334,17.0478762,188.51,188.46,2.6534]
[1736478358438,14.3950762,188.51,188.47,2.6533]
[1736478358639,14.3950762,188.51,188.39,12.8245762]
[1736478359240,14.3950762,188.51,188.47,2.6532]
[1736478359638,4.66,188.51,188.5,2.6529]
[1736478360938,9.7350762,188.54,188.43,1.5185]
[1736478361839,9.7350762,188.54,188.5,2.6528]
[1736478362042,9.7350762,188.54,188.43,1.5185]
[1736478362438,2.6526,188.53,188.46,2.6534]
[1736478362742,2.6526,188.53,188.43,1.5185]
[1736478362941,9.7350762,188.54,188.47,2.6532]
[1736478363135,2.6529,188.5,188.39,12.8245762]
[1736478363536,9.7350762,188.51,188.39,12.8245762]
[1736478363734,2.6531,188.49,188.43,2.6538]
[1736478363937,14.3950762,188.48,188.43,2.6538]
[1736478364740,17.0482762,188.48,188.44,2.6537]
[1736478365246,14.3950762,188.48,188.44,2.6537]
[1736478365630,14.3950762,188.48,188.39,3.0895]
[1736478365835,17.0482762,188.48,188.39,3.0895]
[1736478366444,2.6534,188.47,188.42,2.6539]
[1736478367141,14.3950762,188.48,188.43,2.6538]
[1736478368240,2.6533,188.47,188.43,2.6538]
[1736478368944,14.3950762,188.48,188.43,2.6538]
[1736478369138,17.0482762,188.48,188.43,2.6538]
[1736478371746,2.6533,188.47,188.43,2.6538]
[1736478375350,4.66,188.49,188.39,1.5455]
[1736478375552,4.66,188.49,188.39,3.1047]
[1736478375747,7.3131,188.49,188.39,12.8397762]
[1736478376349,7.3131,188.49,188.44,2.6536]
[1736478376649,4.66,188.49,188.44,2.6536]
[1736478376848,9.7350762,188.48,188.39,3.1047]
[1736478377046,9.7350762,188.48,188.42,2.6539]
[1736478377351,6.23320055,188.44,188.42,2.6539]
[1736478379651,6.23320055,188.44,188.37,6.23320055]
[1736478380848,6.23320055,188.44,188.41,2.6541]
[1736478382246,6.23320055,188.44,188.39,2.6544]
[1736478382447,6.23320055,188.44,188.37,6.23320055]
[1736478383153,6.23320055,188.4,188.33,3.0266]
[1736478383453,6.23320055,188.36,188.32,1.6287]
[1736478383748,6.23320055,188.36,188.3,6.23320055]
[1736478384253,4.66,188.42,188.32,6.23320055]
[1736478384451,6.23320055,188.4,188.38,2.6545]
[1736478384847,6.23320055,188.4,188.34,6.23320055]
[1736478385547,10.89320055,188.42,188.36,6.23320055]
[1736478386054,10.89320055,188.42,188.34,6.23320055]
[1736478386850,10.89320055,188.42,188.38,2.6545]
[1736478387051,4.66,188.42,188.36,6.23320055]
[1736478387253,6.23320055,188.45,188.38,6.23320055]
[1736478387953,3.2874,188.5,188.4,6.23320055]
[1736478387954,6.23320055,188.47,188.4,6.23320055]
[1736478388153,6.23320055,188.5,188.44,6.23320055]
[1736478388455,6.23320055,188.52,188.46,6.23320055]
[1736478388647,10.89320055,188.54,188.46,6.23320055]
[1736478389252,6.23320055,188.56,188.48,6.23320055]
[1736478389451,6.23320055,188.56,188.5,2.6528]
[1736478389655,6.23320055,188.54,188.48,6.23320055]
[1736478389959,6.23320055,188.54,188.5,2.6529]
[1736478390152,6.23320055,188.54,188.48,6.23320055]
[1736478390348,4.66,188.57,188.5,6.23320055]
[1736478390653,6.23320055,188.57,188.5,6.23320055]
[1736478391356,9.72579597,188.57,188.41,199.66]
[1736478391655,9.72579597,188.57,188.5,2.6529]
[1736478391858,9.72579597,188.57,188.44,9.72579597]
[1736478392045,4.66,188.59,188.47,9.72579597]
[1736478393358,12.37729597,188.6,188.53,2.6523]
[1736478393554,4.66,188.59,188.47,9.72579597]
[1736478394059,4.66,188.59,188.57,2.6519]
[1736478394458,17.03689597,188.63,188.57,2.6519]
[1736478394656,17.03689597,188.63,188.5,9.72579597]
[1736478394657,14.38579597,188.63,188.5,9.72579597]
[1736478394858,9.72579597,188.63,188.53,9.72579597]
[1736478395051,4.66,188.64,188.54,1.6005]
[1736478395253,4.66,188.64,188.59,2.6516]
[1736478395663,12.91969597,188.66,188.59,2.6516]
[1736478395860,4.66,188.65,188.59,2.6516]
[1736478396252,4.66,188.65,188.55,3.1264]
[1736478396457,4.66,188.71,188.64,2.6509]